[Event "Titled Tuesday Blitz November 15 Early 2022"]
[White "Sargsyan, Anna M."]
[Black "Artemenko, Oleg"]
[WhiteFideId "13308130"]
[BlackFideId "14201798"]
[WhiteElo "2284"]
[BlackElo "2287"]
[Result "1-0"]
[Round "09"]
[TimeControl "180+1"]
[Date "2022.11.16"]
[WhiteClock "0:00:05"]
[BlackClock "0:00:10"]

1. d4 {[%clk 0:02:57]}  e6 {[%clk 0:02:59]} 2. e4 {[%clk 0:02:54]}  d5 {[%clk 0:02:59]} 3. Nc3 {[%clk 0:02:54]}  Nf6 {[%clk 0:02:58]} 4. e5 {[%clk 0:02:55]}  Nfd7 {[%clk 0:02:58]} 5. f4 {[%clk 0:02:55]}  c5 {[%clk 0:02:58]} 6. Nf3 {[%clk 0:02:56]}  Nc6 {[%clk 0:02:58]} 7. Be3 {[%clk 0:02:57]}  Qb6 {[%clk 0:02:57]} 8. Na4 {[%clk 0:02:49]}  Qa5+ {[%clk 0:02:55]} 9. c3 {[%clk 0:02:48]}  b6 {[%clk 0:02:53]} 10. Kf2 {[%clk 0:02:23]}  cxd4 {[%clk 0:02:48]} 11. cxd4 {[%clk 0:02:17]}  b5 {[%clk 0:02:46]} 12. Nc3 {[%clk 0:02:16]}  b4 {[%clk 0:02:44]} 13. Ne2 {[%clk 0:02:14]}  Qb6 {[%clk 0:02:42]} 14. f5 {[%clk 0:02:10]}  Be7 {[%clk 0:02:36]} 15. Nf4 {[%clk 0:02:08]}  Nd8 {[%clk 0:02:22]} 16. Bd3 {[%clk 0:02:02]}  Ba6 {[%clk 0:02:15]} 17. h4 {[%clk 0:01:37]}  Rc8 {[%clk 0:02:09]} 18. Ng5 {[%clk 0:01:33]}  Bxd3 {[%clk 0:01:15]} 19. Qxd3 {[%clk 0:01:34]}  g6 {[%clk 0:00:54]} 20. fxe6 {[%clk 0:01:15]}  Nxe6 {[%clk 0:00:48]} 21. Nxd5 {[%clk 0:01:08]}  Qb7 {[%clk 0:00:43]} 22. Nxe7 {[%clk 0:01:02]}  Kxe7 {[%clk 0:00:43]} 23. Ne4 {[%clk 0:00:59]}  Qd5 {[%clk 0:00:39]} 24. Bg5+ {[%clk 0:00:22]}  Nxg5 {[%clk 0:00:34]} 25. Nxg5 {[%clk 0:00:23]}  h6 {[%clk 0:00:32]} 26. Nf3 {[%clk 0:00:22]}  Nc5 {[%clk 0:00:31]} 27. Qe3 {[%clk 0:00:09]}  Ne4+ {[%clk 0:00:30]} 28. Kg1 {[%clk 0:00:10]}  Rc2 {[%clk 0:00:23]} 29. Re1 {[%clk 0:00:10]}  Ng3 {[%clk 0:00:23]} 30. Rh3 {[%clk 0:00:09]}  Nf5 {[%clk 0:00:23]} 31. Qf4 {[%clk 0:00:09]}  Rhc8 {[%clk 0:00:18]} 32. h5 {[%clk 0:00:09]}  Rxb2 {[%clk 0:00:13]} 33. hxg6 {[%clk 0:00:09]}  fxg6 {[%clk 0:00:13]} 34. Rxh6 {[%clk 0:00:09]}  Nxh6 {[%clk 0:00:13]} 35. Qxh6 {[%clk 0:00:09]}  Rcc2 {[%clk 0:00:13]} 36. Qg5+ {[%clk 0:00:09]}  Kd7 {[%clk 0:00:13]} 37. Nh4 {[%clk 0:00:03]}  Qxd4+ {[%clk 0:00:12]} 38. Kh2 {[%clk 0:00:02]}  Qd2 {[%clk 0:00:13]} 39. Qg4+ {[%clk 0:00:02]}  Kc7 {[%clk 0:00:12]} 40. Re4 {[%clk 0:00:03]}  Qh6 {[%clk 0:00:12]} 41. e6 {[%clk 0:00:02]}  Rxg2+ {[%clk 0:00:12]} 42. Qxg2 {[%clk 0:00:03]}  Rxg2+ {[%clk 0:00:13]} 43. Kxg2 {[%clk 0:00:04]}  Qg5+ {[%clk 0:00:14]} 44. Kf3 {[%clk 0:00:04]}  Qe7 {[%clk 0:00:13]} 45. Nxg6 {[%clk 0:00:03]}  Qf6+ {[%clk 0:00:13]} 46. Nf4 {[%clk 0:00:04]}  Kd8 {[%clk 0:00:13]} 47. e7+ {[%clk 0:00:04]}  Ke8 {[%clk 0:00:14]} 48. Ke3 {[%clk 0:00:04]}  Qc3+ {[%clk 0:00:15]} 49. Nd3 {[%clk 0:00:03]}  a5 {[%clk 0:00:14]} 50. Ke2 {[%clk 0:00:04]}  Qc2+ {[%clk 0:00:14]} 51. Ke3 {[%clk 0:00:04]}  Qxa2 {[%clk 0:00:15]} 52. Nf4 {[%clk 0:00:03]}  Qb3+ {[%clk 0:00:14]} 53. Kf2 {[%clk 0:00:04]}  Qb2+ {[%clk 0:00:14]} 54. Kf3 {[%clk 0:00:04]}  Qf6 {[%clk 0:00:14]} 55. Re6 {[%clk 0:00:03]}  Qc3+ {[%clk 0:00:13]} 56. Ke4 {[%clk 0:00:04]}  Qc4+ {[%clk 0:00:12]} 57. Kf5 {[%clk 0:00:04]}  b3 {[%clk 0:00:12]} 58. Nh5 {[%clk 0:00:03]}  b2 {[%clk 0:00:12]} 59. Nf6+ {[%clk 0:00:03]}  Kf7 {[%clk 0:00:09]} 60. e8=Q+ {[%clk 0:00:04]}  Kg7 {[%clk 0:00:10]} 61. Qg8+ {[%clk 0:00:04]}  Kh6 {[%clk 0:00:10]} 62. Qg6# {[%clk 0:00:05]} 1-0


[Site "https://www.chess.com"]

[Event "Titled Tuesday Blitz November 15 Early 2022"]
[White "Sarkar, Justin"]
[Black "Abhishek, Das"]
[WhiteFideId "2010011"]
[BlackFideId "5013348"]
[WhiteElo "2239"]
[BlackElo "2230"]
[Result "1/2-1/2"]
[Round "09"]
[TimeControl "180+1"]
[Date "2022.11.16"]
[WhiteClock "0:00:33"]
[BlackClock "0:02:06"]

1. d4 {[%clk 0:01:27]}  d5 {[%clk 0:02:56]} 2. c4 {[%clk 0:01:26]}  c6 {[%clk 0:02:54]} 3. Nf3 {[%clk 0:01:25]}  Nf6 {[%clk 0:02:54]} 4. Nc3 {[%clk 0:01:25]}  g6 {[%clk 0:02:55]} 5. Qb3 {[%clk 0:01:22]}  Bg7 {[%clk 0:02:50]} 6. cxd5 {[%clk 0:01:19]}  cxd5 {[%clk 0:02:49]} 7. Bg5 {[%clk 0:01:20]}  e6 {[%clk 0:02:46]} 8. e3 {[%clk 0:01:18]}  O-O {[%clk 0:02:44]} 9. Bd3 {[%clk 0:01:18]}  b6 {[%clk 0:02:41]} 10. Ne5 {[%clk 0:01:16]}  Ba6 {[%clk 0:02:34]} 11. Bxa6 {[%clk 0:01:10]}  Nxa6 {[%clk 0:02:34]} 12. O-O {[%clk 0:01:10]}  h6 {[%clk 0:02:30]} 13. Bxf6 {[%clk 0:01:04]}  Bxf6 {[%clk 0:02:29]} 14. f4 {[%clk 0:01:04]}  Nc7 {[%clk 0:02:24]} 15. Rac1 {[%clk 0:01:03]}  Ne8 {[%clk 0:02:23]} 16. Qc2 {[%clk 0:01:00]}  Nd6 {[%clk 0:02:22]} 17. Qd3 {[%clk 0:00:52]}  a6 {[%clk 0:02:18]} 18. g3 {[%clk 0:00:42]}  b5 {[%clk 0:02:17]} 19. h4 {[%clk 0:00:39]}  h5 {[%clk 0:02:15]} 20. Nxg6 {[%clk 0:00:38]}  fxg6 {[%clk 0:02:12]} 21. Qxg6+ {[%clk 0:00:38]}  Kh8 {[%clk 0:02:10]} 22. Qh6+ {[%clk 0:00:35]}  Kg8 {[%clk 0:02:08]} 23. Qg6+ {[%clk 0:00:34]}  Kh8 {[%clk 0:02:06]} 24. Qh6+ {[%clk 0:00:32]}  Kg8 {[%clk 0:02:06]} 25. Qg6+ {[%clk 0:00:33]} 1/2-1/2


[Site "https://www.chess.com"]

[Event "Titled Tuesday Blitz November 15 Early 2022"]
[White "Sharifov, Mekhriddin"]
[Black "Bluebaum, Matthias"]
[WhiteFideId "14701545"]
[BlackFideId "24651516"]
[WhiteElo "2109"]
[BlackElo "2633"]
[Result "0-1"]
[Round "09"]
[TimeControl "180+1"]
[Date "2022.11.15"]
[WhiteClock "0:00:01"]
[BlackClock "0:02:00"]

1. e4 {[%clk 0:03:00]}  e6 {[%clk 0:02:59]} 2. d4 {[%clk 0:02:58]}  d5 {[%clk 0:03:00]} 3. Nc3 {[%clk 0:02:59]}  Nf6 {[%clk 0:03:00]} 4. Bg5 {[%clk 0:02:58]}  dxe4 {[%clk 0:03:01]} 5. Nxe4 {[%clk 0:02:59]}  Be7 {[%clk 0:03:01]} 6. Bxf6 {[%clk 0:02:58]}  gxf6 {[%clk 0:03:02]} 7. Nf3 {[%clk 0:02:57]}  f5 {[%clk 0:03:02]} 8. Nc3 {[%clk 0:02:57]}  a6 {[%clk 0:03:03]} 9. g3 {[%clk 0:02:58]}  b5 {[%clk 0:03:03]} 10. Bg2 {[%clk 0:02:59]}  Bb7 {[%clk 0:03:04]} 11. O-O {[%clk 0:02:59]}  O-O {[%clk 0:03:05]} 12. Qe2 {[%clk 0:02:51]}  c5 {[%clk 0:03:05]} 13. dxc5 {[%clk 0:02:18]}  Bxc5 {[%clk 0:03:02]} 14. Rad1 {[%clk 0:02:18]}  Qc7 {[%clk 0:02:58]} 15. Ne5 {[%clk 0:01:52]}  Bxg2 {[%clk 0:02:58]} 16. Kxg2 {[%clk 0:01:53]}  Bd6 {[%clk 0:02:31]} 17. Rfe1 {[%clk 0:01:40]}  Nc6 {[%clk 0:02:27]} 18. Nxc6 {[%clk 0:01:06]}  Qxc6+ {[%clk 0:02:28]} 19. Qf3 {[%clk 0:01:06]}  Rac8 {[%clk 0:02:28]} 20. Re2 {[%clk 0:00:58]}  Rc7 {[%clk 0:02:12]} 21. a3 {[%clk 0:00:50]}  Rfc8 {[%clk 0:02:11]} 22. Rd3 {[%clk 0:00:46]}  Bf8 {[%clk 0:02:08]} 23. Qxc6 {[%clk 0:00:27]}  Rxc6 {[%clk 0:02:09]} 24. h4 {[%clk 0:00:16]}  h6 {[%clk 0:02:03]} 25. h5 {[%clk 0:00:16]}  Bg7 {[%clk 0:02:03]} 26. Ree3 {[%clk 0:00:08]}  Bf6 {[%clk 0:02:01]} 27. Kh3 {[%clk 0:00:05]}  Rc4 {[%clk 0:02:00]} 28. f3 {[%clk 0:00:05]}  Bd4 {[%clk 0:01:58]} 29. Re2 {[%clk 0:00:03]}  Bxc3 {[%clk 0:01:59]} 30. bxc3 {[%clk 0:00:02]}  Rxc3 {[%clk 0:02:00]} 31. Red2 {[%clk 0:00:01]}  Rxc2 {[%clk 0:02:00]} 32. Rxc2 {[%clk 0:00:01]}  Rxc2 {[%clk 0:02:01]} 33. Rd6 {[%clk 0:00:02]}  Rc3 {[%clk 0:01:59]} 34. Rxa6 {[%clk 0:00:02]}  Rxf3 {[%clk 0:02:00]} 35. Kg2 {[%clk 0:00:01]}  Rb3 {[%clk 0:02:00]} 36. Rb6 {[%clk 0:00:01]}  Kg7 {[%clk 0:02:00]} 0-1


[Site "https://www.chess.com"]

[Event "Titled Tuesday Blitz November 15 Early 2022"]
[White "Shuvalova, Polina"]
[Black "Donchenko, Alexander"]
[WhiteFideId "24171760"]
[BlackFideId "24603295"]
[WhiteElo "2342"]
[BlackElo "2572"]
[Result "1-0"]
[Round "09"]
[TimeControl "180+1"]
[Date "2022.11.16"]
[WhiteClock "0:00:05"]
[BlackClock "0:00:02"]

1. d4 {[%clk 0:03:00]}  d5 {[%clk 0:03:00]} 2. Nf3 {[%clk 0:03:00]}  Nf6 {[%clk 0:02:58]} 3. Bf4 {[%clk 0:03:00]}  c5 {[%clk 0:02:53]} 4. e3 {[%clk 0:02:58]}  cxd4 {[%clk 0:02:51]} 5. exd4 {[%clk 0:02:58]}  Qb6 {[%clk 0:02:51]} 6. Qc1 {[%clk 0:02:44]}  Bd7 {[%clk 0:02:49]} 7. Nbd2 {[%clk 0:02:39]}  e6 {[%clk 0:02:48]} 8. c3 {[%clk 0:02:37]}  Be7 {[%clk 0:02:47]} 9. a4 {[%clk 0:02:34]}  O-O {[%clk 0:02:43]} 10. Bd3 {[%clk 0:02:33]}  Nc6 {[%clk 0:02:41]} 11. O-O {[%clk 0:02:30]}  Rfc8 {[%clk 0:02:41]} 12. Qb1 {[%clk 0:02:25]}  h6 {[%clk 0:02:39]} 13. h3 {[%clk 0:02:24]}  Be8 {[%clk 0:02:39]} 14. Re1 {[%clk 0:02:23]}  Qd8 {[%clk 0:02:33]} 15. Ne5 {[%clk 0:02:12]}  Nxe5 {[%clk 0:02:32]} 16. Bxe5 {[%clk 0:02:09]}  Nd7 {[%clk 0:02:28]} 17. Bg3 {[%clk 0:02:08]}  Nf8 {[%clk 0:02:23]} 18. Nf3 {[%clk 0:02:06]}  Bd6 {[%clk 0:02:21]} 19. Bxd6 {[%clk 0:02:02]}  Qxd6 {[%clk 0:02:21]} 20. Qc1 {[%clk 0:01:58]}  Rab8 {[%clk 0:02:14]} 21. Qe3 {[%clk 0:01:56]}  a5 {[%clk 0:02:07]} 22. Ne5 {[%clk 0:01:47]}  Qc7 {[%clk 0:02:06]} 23. g3 {[%clk 0:01:38]}  b5 {[%clk 0:02:04]} 24. axb5 {[%clk 0:01:37]}  Bxb5 {[%clk 0:02:05]} 25. Bxb5 {[%clk 0:01:32]}  Rxb5 {[%clk 0:02:06]} 26. Ra2 {[%clk 0:01:32]}  Rcb8 {[%clk 0:02:05]} 27. Nd3 {[%clk 0:01:32]}  Nd7 {[%clk 0:02:04]} 28. Rea1 {[%clk 0:01:30]}  Nb6 {[%clk 0:02:00]} 29. Qe2 {[%clk 0:01:13]}  Nc4 {[%clk 0:01:59]} 30. h4 {[%clk 0:01:05]}  Rb3 {[%clk 0:01:46]} 31. Kg2 {[%clk 0:01:04]}  Qd8 {[%clk 0:01:37]} 32. Kh2 {[%clk 0:00:56]}  Qf6 {[%clk 0:01:36]} 33. Kg2 {[%clk 0:00:55]}  Qf5 {[%clk 0:01:36]} 34. Re1 {[%clk 0:00:53]}  R8b5 {[%clk 0:01:27]} 35. g4 {[%clk 0:00:49]}  Qf6 {[%clk 0:01:26]} 36. h5 {[%clk 0:00:47]}  Qd8 {[%clk 0:01:24]} 37. Rea1 {[%clk 0:00:43]}  Qb6 {[%clk 0:01:22]} 38. Qf3 {[%clk 0:00:40]}  Nxb2 {[%clk 0:01:16]} 39. Ne5 {[%clk 0:00:39]}  Qc7 {[%clk 0:01:12]} 40. Rxa5 {[%clk 0:00:37]}  Rxa5 {[%clk 0:01:04]} 41. Rxa5 {[%clk 0:00:38]}  Rb8 {[%clk 0:01:01]} 42. Rc5 {[%clk 0:00:37]}  Qb7 {[%clk 0:00:54]} 43. Qf4 {[%clk 0:00:31]}  Rf8 {[%clk 0:00:45]} 44. Qg3 {[%clk 0:00:26]}  Na4 {[%clk 0:00:43]} 45. Ra5 {[%clk 0:00:24]}  Nb6 {[%clk 0:00:43]} 46. Rb5 {[%clk 0:00:22]}  Qc7 {[%clk 0:00:41]} 47. Qf3 {[%clk 0:00:18]}  Nc4 {[%clk 0:00:39]} 48. Rc5 {[%clk 0:00:16]}  Nxe5 {[%clk 0:00:37]} 49. Rxc7 {[%clk 0:00:17]}  Nxf3 {[%clk 0:00:37]} 50. Kxf3 {[%clk 0:00:18]}  Ra8 {[%clk 0:00:37]} 51. Kf4 {[%clk 0:00:17]}  Ra2 {[%clk 0:00:36]} 52. f3 {[%clk 0:00:17]}  Rc2 {[%clk 0:00:36]} 53. Rc8+ {[%clk 0:00:17]}  Kh7 {[%clk 0:00:36]} 54. Rc7 {[%clk 0:00:18]}  g5+ {[%clk 0:00:32]} 55. hxg6+ {[%clk 0:00:12]}  Kxg6 {[%clk 0:00:33]} 56. Ke3 {[%clk 0:00:11]}  Rc1 {[%clk 0:00:29]} 57. Kd2 {[%clk 0:00:09]}  Rf1 {[%clk 0:00:29]} 58. Ke2 {[%clk 0:00:09]}  Ra1 {[%clk 0:00:29]} 59. Ke3 {[%clk 0:00:09]}  Ra4 {[%clk 0:00:29]} 60. Kf4 {[%clk 0:00:09]}  Ra3 {[%clk 0:00:27]} 61. Rc6 {[%clk 0:00:09]}  h5 {[%clk 0:00:25]} 62. gxh5+ {[%clk 0:00:08]}  Kxh5 {[%clk 0:00:26]} 63. Ke5 {[%clk 0:00:08]}  Kg6 {[%clk 0:00:26]} 64. f4 {[%clk 0:00:07]}  Kg7 {[%clk 0:00:19]} 65. f5 {[%clk 0:00:07]}  exf5 {[%clk 0:00:19]} 66. Kxd5 {[%clk 0:00:06]}  f6 {[%clk 0:00:18]} 67. Ke6 {[%clk 0:00:04]}  Kg6 {[%clk 0:00:17]} 68. d5 {[%clk 0:00:04]}  f4 {[%clk 0:00:17]} 69. d6 {[%clk 0:00:05]}  f3 {[%clk 0:00:06]} 70. d7 {[%clk 0:00:05]}  f2 {[%clk 0:00:02]} 71. d8=Q {[%clk 0:00:05]}  f1=Q {[%clk 0:00:03]} 72. Qg8+ {[%clk 0:00:05]}  Kh6 {[%clk 0:00:03]} 73. Qh8+ {[%clk 0:00:05]}  Kg6 {[%clk 0:00:03]} 74. Qg8+ {[%clk 0:00:05]}  Kh6 {[%clk 0:00:04]} 75. Qf8+ {[%clk 0:00:05]}  Kg6 {[%clk 0:00:04]} 76. Qf7+ {[%clk 0:00:05]}  Kh6 {[%clk 0:00:04]} 77. Qf8+ {[%clk 0:00:04]}  Kg6 {[%clk 0:00:04]} 78. Qf7+ {[%clk 0:00:04]}  Kh6 {[%clk 0:00:04]} 79. Qxf6+ {[%clk 0:00:04]}  Qxf6+ {[%clk 0:00:04]} 80. Kxf6 {[%clk 0:00:05]}  Ra2 {[%clk 0:00:02]} 81. c4 {[%clk 0:00:05]}  Rd2 {[%clk 0:00:02]} 82. Rc8 {[%clk 0:00:05]}  Kh7 {[%clk 0:00:02]} 83. c5 {[%clk 0:00:05]} 1-0


[Site "https://www.chess.com"]

[Event "Titled Tuesday Blitz November 15 Early 2022"]
[White "Sowul, Bartosz"]
[Black "Deuer, Marius"]
[WhiteFideId "1137590"]
[BlackFideId "16236432"]
[WhiteElo "2188"]
[BlackElo "2226"]
[Result "0-1"]
[Round "09"]
[TimeControl "180+1"]
[Date "2022.11.16"]
[WhiteClock "0:00:04"]
[BlackClock "0:00:28"]

1. e4 {[%clk 0:02:59]}  e5 {[%clk 0:02:58]} 2. Nf3 {[%clk 0:02:59]}  Nc6 {[%clk 0:02:59]} 3. Bb5 {[%clk 0:02:59]}  a6 {[%clk 0:02:53]} 4. Bxc6 {[%clk 0:02:59]}  dxc6 {[%clk 0:02:49]} 5. O-O {[%clk 0:02:59]}  f6 {[%clk 0:02:47]} 6. d4 {[%clk 0:02:59]}  exd4 {[%clk 0:02:46]} 7. Nxd4 {[%clk 0:02:59]}  Bc5 {[%clk 0:02:45]} 8. Nb3 {[%clk 0:02:50]}  Qxd1 {[%clk 0:02:44]} 9. Rxd1 {[%clk 0:02:51]}  Bd6 {[%clk 0:02:42]} 10. Na5 {[%clk 0:02:28]}  Ne7 {[%clk 0:02:39]} 11. Nc4 {[%clk 0:02:26]}  Bc5 {[%clk 0:02:38]} 12. Bf4 {[%clk 0:02:21]}  Be6 {[%clk 0:02:35]} 13. Nba3 {[%clk 0:01:40]}  b5 {[%clk 0:02:30]} 14. Na5 {[%clk 0:01:22]}  Bb6 {[%clk 0:02:28]} 15. b4 {[%clk 0:01:19]}  c5 {[%clk 0:01:44]} 16. c3 {[%clk 0:01:19]}  Bxa5 {[%clk 0:01:44]} 17. bxa5 {[%clk 0:01:19]}  Rc8 {[%clk 0:01:45]} 18. Nc2 {[%clk 0:01:14]}  Nc6 {[%clk 0:01:41]} 19. Ne3 {[%clk 0:01:00]}  Nxa5 {[%clk 0:01:39]} 20. Nd5 {[%clk 0:01:00]}  Bxd5 {[%clk 0:00:49]} 21. Rxd5 {[%clk 0:00:59]}  Nb7 {[%clk 0:00:50]} 22. Rad1 {[%clk 0:00:55]}  c6 {[%clk 0:00:48]} 23. Rd7 {[%clk 0:00:43]}  Rd8 {[%clk 0:00:48]} 24. Rxd8+ {[%clk 0:00:42]}  Nxd8 {[%clk 0:00:48]} 25. Be3 {[%clk 0:00:37]}  Nb7 {[%clk 0:00:44]} 26. Bf4 {[%clk 0:00:08]}  Ke7 {[%clk 0:00:43]} 27. Bc7 {[%clk 0:00:08]}  Rc8 {[%clk 0:00:40]} 28. Bb6 {[%clk 0:00:08]}  c4 {[%clk 0:00:40]} 29. f3 {[%clk 0:00:06]}  c5 {[%clk 0:00:38]} 30. Kf2 {[%clk 0:00:04]}  Rc6 {[%clk 0:00:38]} 31. Ba7 {[%clk 0:00:04]}  a5 {[%clk 0:00:28]} 0-1


[Site "https://www.chess.com"]

[Event "Titled Tuesday Blitz November 15 Early 2022"]
[White "Sreyas Payyappat"]
[Black "Skliarov, Viktor"]
[WhiteFideId "46674969"]
[BlackFideId "14106736"]
[WhiteElo "2083"]
[BlackElo "2284"]
[Result "1-0"]
[Round "09"]
[TimeControl "180+1"]
[Date "2022.11.16"]
[WhiteClock "0:00:06"]
[BlackClock "0:00:03"]

1. e4 {[%clk 0:03:00]}  c5 {[%clk 0:02:18]} 2. Nf3 {[%clk 0:02:58]}  Nc6 {[%clk 0:02:15]} 3. d4 {[%clk 0:02:57]}  cxd4 {[%clk 0:02:15]} 4. Nxd4 {[%clk 0:02:58]}  Nf6 {[%clk 0:02:15]} 5. Nc3 {[%clk 0:02:58]}  e5 {[%clk 0:02:15]} 6. Ndb5 {[%clk 0:02:57]}  d6 {[%clk 0:02:15]} 7. Bg5 {[%clk 0:02:56]}  a6 {[%clk 0:02:15]} 8. Na3 {[%clk 0:02:54]}  b5 {[%clk 0:02:15]} 9. Nd5 {[%clk 0:02:53]}  Be7 {[%clk 0:02:15]} 10. Bxf6 {[%clk 0:02:48]}  Bxf6 {[%clk 0:02:14]} 11. c4 {[%clk 0:02:45]}  b4 {[%clk 0:02:14]} 12. Nc2 {[%clk 0:02:40]}  a5 {[%clk 0:02:13]} 13. g3 {[%clk 0:02:37]}  Bg5 {[%clk 0:02:12]} 14. Bg2 {[%clk 0:02:35]}  O-O {[%clk 0:02:11]} 15. O-O {[%clk 0:02:32]}  Nb8 {[%clk 0:02:03]} 16. f4 {[%clk 0:02:30]}  Bh6 {[%clk 0:01:55]} 17. Nce3 {[%clk 0:02:18]}  Na6 {[%clk 0:01:45]} 18. Nf5 {[%clk 0:02:11]}  Bxf5 {[%clk 0:01:40]} 19. exf5 {[%clk 0:02:12]}  Rb8 {[%clk 0:01:33]} 20. f6 {[%clk 0:02:00]}  exf4 {[%clk 0:01:06]} 21. Qg4 {[%clk 0:01:49]}  Re8 {[%clk 0:00:32]} 22. Ne7+ {[%clk 0:01:33]}  Rxe7 {[%clk 0:00:31]} 23. fxe7 {[%clk 0:01:31]}  Qxe7 {[%clk 0:00:32]} 24. Rae1 {[%clk 0:01:22]}  Qa7+ {[%clk 0:00:31]} 25. Kh1 {[%clk 0:01:21]}  Nc5 {[%clk 0:00:22]} 26. Bd5 {[%clk 0:01:09]}  Rf8 {[%clk 0:00:19]} 27. Qf3 {[%clk 0:00:55]}  a4 {[%clk 0:00:17]} 28. gxf4 {[%clk 0:00:54]}  b3 {[%clk 0:00:15]} 29. axb3 {[%clk 0:00:48]}  axb3 {[%clk 0:00:16]} 30. f5 {[%clk 0:00:46]}  Bg5 {[%clk 0:00:13]} 31. f6 {[%clk 0:00:22]}  Bxf6 {[%clk 0:00:14]} 32. Qh5 {[%clk 0:00:18]}  Kh8 {[%clk 0:00:08]} 33. Re3 {[%clk 0:00:14]}  Ne6 {[%clk 0:00:06]} 34. Rh3 {[%clk 0:00:14]}  Ng5 {[%clk 0:00:05]} 35. Rg3 {[%clk 0:00:11]}  Qe7 {[%clk 0:00:04]} 36. h4 {[%clk 0:00:10]}  Ne4 {[%clk 0:00:03]} 37. Bxe4 {[%clk 0:00:06]}  Qxe4+ {[%clk 0:00:03]} 38. Qf3 {[%clk 0:00:06]}  Qxc4 {[%clk 0:00:03]} 39. Rg4 {[%clk 0:00:05]}  Qe6 {[%clk 0:00:03]} 40. Qg3 {[%clk 0:00:04]}  Be5 {[%clk 0:00:03]} 41. Qg2 {[%clk 0:00:04]}  f5 {[%clk 0:00:04]} 42. Rg5 {[%clk 0:00:04]}  g6 {[%clk 0:00:04]} 43. h5 {[%clk 0:00:04]}  Rg8 {[%clk 0:00:04]} 44. hxg6 {[%clk 0:00:04]}  hxg6 {[%clk 0:00:05]} 45. Rg1 {[%clk 0:00:03]}  Bf4 {[%clk 0:00:03]} 46. Qh3+ {[%clk 0:00:03]}  Kg7 {[%clk 0:00:02]} 47. Rxg6+ {[%clk 0:00:02]}  Qxg6 {[%clk 0:00:03]} 48. Rxg6+ {[%clk 0:00:03]}  Kxg6 {[%clk 0:00:04]} 49. Qxb3 {[%clk 0:00:03]}  Rh8+ {[%clk 0:00:04]} 50. Kg1 {[%clk 0:00:04]}  Be5 {[%clk 0:00:04]} 51. Qe6+ {[%clk 0:00:03]}  Kg5 {[%clk 0:00:05]} 52. b4 {[%clk 0:00:04]}  Rb8 {[%clk 0:00:02]} 53. Qe7+ {[%clk 0:00:05]}  Kf4 {[%clk 0:00:02]} 54. Qh7 {[%clk 0:00:04]}  Rb6 {[%clk 0:00:01]} 55. Qh4+ {[%clk 0:00:04]}  Kf3 {[%clk 0:00:02]} 56. Kf1 {[%clk 0:00:04]}  f4 {[%clk 0:00:02]} 57. Qf2+ {[%clk 0:00:04]}  Ke4 {[%clk 0:00:02]} 58. Qxb6 {[%clk 0:00:05]}  Kf5 {[%clk 0:00:03]} 59. Qb7 {[%clk 0:00:06]} 1-0


[Site "https://www.chess.com"]

[Event "Titled Tuesday Blitz November 15 Early 2022"]
[White "Stankovic, Ivan G"]
[Black "Chylewski, Patryk"]
[WhiteFideId "902837"]
[BlackFideId "1186191"]
[WhiteElo "2226"]
[BlackElo "2192"]
[Result "1-0"]
[Round "09"]
[TimeControl "180+1"]
[Date "2022.11.16"]
[WhiteClock "0:00:20"]
[BlackClock "0:00:06"]

1. e4 {[%clk 0:02:36]}  c5 {[%clk 0:03:00]} 2. c4 {[%clk 0:02:35]}  e6 {[%clk 0:02:59]} 3. Nc3 {[%clk 0:02:32]}  Nf6 {[%clk 0:02:53]} 4. Nf3 {[%clk 0:02:29]}  d5 {[%clk 0:02:52]} 5. exd5 {[%clk 0:02:22]}  exd5 {[%clk 0:02:53]} 6. cxd5 {[%clk 0:02:23]}  Nxd5 {[%clk 0:02:53]} 7. d4 {[%clk 0:02:23]}  Nxc3 {[%clk 0:02:48]} 8. bxc3 {[%clk 0:02:23]}  Be7 {[%clk 0:02:45]} 9. Bb5+ {[%clk 0:02:17]}  Bd7 {[%clk 0:02:44]} 10. Bxd7+ {[%clk 0:02:11]}  Nxd7 {[%clk 0:02:45]} 11. O-O {[%clk 0:02:12]}  O-O {[%clk 0:02:43]} 12. Qb3 {[%clk 0:02:01]}  cxd4 {[%clk 0:02:36]} 13. Nxd4 {[%clk 0:01:57]}  Nc5 {[%clk 0:02:34]} 14. Qb5 {[%clk 0:01:46]}  a6 {[%clk 0:02:30]} 15. Qe2 {[%clk 0:01:44]}  Bf6 {[%clk 0:02:29]} 16. Be3 {[%clk 0:01:44]}  Re8 {[%clk 0:02:28]} 17. Rab1 {[%clk 0:01:43]}  Qa5 {[%clk 0:02:19]} 18. Qg4 {[%clk 0:01:34]}  Qxa2 {[%clk 0:01:58]} 19. Nf5 {[%clk 0:01:28]}  Re4 {[%clk 0:01:15]} 20. Qf3 {[%clk 0:01:00]}  Qc4 {[%clk 0:01:09]} 21. Bxc5 {[%clk 0:00:57]}  Rf4 {[%clk 0:01:09]} 22. Qxb7 {[%clk 0:00:57]}  Re8 {[%clk 0:01:07]} 23. Ne7+ {[%clk 0:00:53]}  Kh8 {[%clk 0:00:50]} 24. Nd5 {[%clk 0:00:40]}  Rf5 {[%clk 0:00:26]} 25. Nxf6 {[%clk 0:00:39]}  Rxf6 {[%clk 0:00:27]} 26. Bd4 {[%clk 0:00:38]}  Rg6 {[%clk 0:00:27]} 27. Qe4 {[%clk 0:00:25]}  Rc8 {[%clk 0:00:22]} 28. Rb8 {[%clk 0:00:19]}  h6 {[%clk 0:00:18]} 29. h4 {[%clk 0:00:17]}  Kh7 {[%clk 0:00:13]} 30. Rxc8 {[%clk 0:00:16]}  Qxc8 {[%clk 0:00:13]} 31. h5 {[%clk 0:00:17]}  f5 {[%clk 0:00:12]} 32. hxg6+ {[%clk 0:00:17]}  Kxg6 {[%clk 0:00:13]} 33. Qf3 {[%clk 0:00:16]}  a5 {[%clk 0:00:12]} 34. Qg3+ {[%clk 0:00:17]}  Kh5 {[%clk 0:00:12]} 35. Qxg7 {[%clk 0:00:18]}  a4 {[%clk 0:00:12]} 36. Qf7+ {[%clk 0:00:16]}  Kg4 {[%clk 0:00:11]} 37. f3+ {[%clk 0:00:16]}  Kg3 {[%clk 0:00:11]} 38. Be5+ {[%clk 0:00:16]}  Kh4 {[%clk 0:00:11]} 39. Qf6+ {[%clk 0:00:16]}  Kh5 {[%clk 0:00:11]} 40. g4+ {[%clk 0:00:16]}  fxg4 {[%clk 0:00:11]} 41. Rf2 {[%clk 0:00:17]}  g3 {[%clk 0:00:09]} 42. Bxg3 {[%clk 0:00:15]}  Qh3 {[%clk 0:00:06]} 43. Qh4+ {[%clk 0:00:15]}  Qxh4 {[%clk 0:00:05]} 44. Bxh4 {[%clk 0:00:16]}  a3 {[%clk 0:00:05]} 45. Ra2 {[%clk 0:00:16]}  Kxh4 {[%clk 0:00:04]} 46. Rxa3 {[%clk 0:00:17]}  Kg3 {[%clk 0:00:05]} 47. c4 {[%clk 0:00:18]}  h5 {[%clk 0:00:05]} 48. c5 {[%clk 0:00:19]}  h4 {[%clk 0:00:06]} 49. c6 {[%clk 0:00:19]}  h3 {[%clk 0:00:06]} 50. f4+ {[%clk 0:00:20]}  Kh4 {[%clk 0:00:06]} 51. Rxh3+ {[%clk 0:00:20]} 1-0


[Site "https://www.chess.com"]